[Event "Live Chess"]
[Site "Chess.com"]
[Date "2023.05.21"]
[Round "-"]
[White "JoRoSaR"]
[Black "HoarseyHorsey"]
[Result "1-0"]
[WhiteElo "1690"]
[BlackElo "1464"]
[TimeControl "300"]
[EndTime "5:47:54 PDT"]
[Termination "JoRoSaR won by resignation"]

1. e4 {[%clk 0:04:57]} 1... c5 {[%clk 0:04:58.7]} 2. Nf3 {[%clk 0:04:56.4]} 2...
e6 {[%clk 0:04:58.2]} 3. Bb5 {[%clk 0:04:54.4]} 3... Nc6 {[%clk 0:04:55]} 4.
Bxc6 {[%clk 0:04:49.7]} 4... bxc6 {[%clk 0:04:54.9]} 5. d3 {[%clk 0:04:49.1]}
5... d5 {[%clk 0:04:53.9]} 6. O-O {[%clk 0:04:47.4]} 6... Be7 {[%clk 0:04:39.7]}
7. c4 {[%clk 0:04:43]} 7... Nf6 {[%clk 0:04:37.9]} 8. Qc2 {[%clk 0:04:42.3]}
8... dxe4 {[%clk 0:04:26.6]} 9. dxe4 {[%clk 0:04:38.4]} 9... O-O {[%clk
0:04:23.8]} 10. Nc3 {[%clk 0:04:37.4]} 10... Qc7 {[%clk 0:04:17.4]} 11. b3
{[%clk 0:04:36.6]} 11... Nd7 {[%clk 0:04:16.2]} 12. Bb2 {[%clk 0:04:33.2]} 12...
Ne5 {[%clk 0:04:09.2]} 13. Nxe5 {[%clk 0:04:29.8]} 13... Qxe5 {[%clk 0:04:08.1]}
14. Na4 {[%clk 0:04:28.3]} 14... Qc7 {[%clk 0:03:53.4]} 15. Ba3 {[%clk
0:04:26.1]} 15... Bd6 {[%clk 0:03:49.5]} 16. g3 {[%clk 0:04:23.9]} 16... Rd8
{[%clk 0:03:36.3]} 17. Bxc5 {[%clk 0:04:19.4]} 17... Bxc5 {[%clk 0:03:35.4]} 18.
Nxc5 {[%clk 0:04:19.3]} 18... Qb6 {[%clk 0:03:29.4]} 19. Na4 {[%clk 0:04:16.8]}
19... Qb4 {[%clk 0:03:27]} 20. Rad1 {[%clk 0:04:15.6]} 20... Bb7 {[%clk
0:03:21.4]} 21. Rxd8+ {[%clk 0:04:12.1]} 21... Rxd8 {[%clk 0:03:20.5]} 22. Rd1
{[%clk 0:04:11.8]} 22... Qe7 {[%clk 0:03:16.5]} 23. Rd3 {[%clk 0:04:09]} 23...
Rxd3 {[%clk 0:03:12.4]} 24. Qxd3 {[%clk 0:04:08.9]} 24... Kf8 {[%clk 0:02:55.4]}
25. Qd4 {[%clk 0:04:06.7]} 25... Ke8 {[%clk 0:02:50]} 26. Nc5 {[%clk 0:04:06]}
26... Ba8 {[%clk 0:02:48.6]} 27. Qxg7 {[%clk 0:04:01.4]} 27... Qxc5 {[%clk
0:02:40.9]} 28. Qh8+ {[%clk 0:03:59.8]} 28... Ke7 {[%clk 0:02:40.4]} 29. Qxa8
{[%clk 0:03:58.4]} 29... Qd4 {[%clk 0:02:36]} 30. Qb7+ {[%clk 0:03:56.7]} 30...
Kf6 {[%clk 0:02:35.1]} 31. Qxc6 {[%clk 0:03:55.3]} 31... h5 {[%clk 0:02:28.6]}
32. a4 {[%clk 0:03:52.1]} 32... h4 {[%clk 0:02:27.1]} 33. Kg2 {[%clk 0:03:50.1]}
33... Qc3 {[%clk 0:02:21.2]} 34. Qb5 {[%clk 0:03:42.3]} 34... e5 {[%clk
0:02:10.3]} 35. f4 {[%clk 0:03:39.3]} 35... hxg3 {[%clk 0:02:04.2]} 36. hxg3
{[%clk 0:03:36]} 36... Qd2+ {[%clk 0:02:00.8]} 37. Kh3 {[%clk 0:03:33.7]} 37...
exf4 {[%clk 0:01:58.4]} 38. Qf5+ {[%clk 0:03:32.6]} 38... Ke7 {[%clk 0:01:55.3]}
39. Qxf4 {[%clk 0:03:30.7]} 39... Qd3 {[%clk 0:01:53]} 40. Qe5+ {[%clk
0:03:28.4]} 40... Kf8 {[%clk 0:01:51.1]} 41. Qb8+ {[%clk 0:03:26.6]} 41... Kg7
{[%clk 0:01:49.9]} 42. Qb7 {[%clk 0:03:24.6]} 42... a5 {[%clk 0:01:45.1]} 43. e5
{[%clk 0:03:19.8]} 43... Qf5+ {[%clk 0:01:42.2]} 44. g4 {[%clk 0:03:18.4]} 44...
Qd3+ {[%clk 0:01:40.6]} 45. Kh4 {[%clk 0:03:17.1]} 45... Qh7+ {[%clk 0:01:33.2]}
46. Kg5 {[%clk 0:03:15]} 46... Qg6+ {[%clk 0:01:27]} 47. Kf4 {[%clk 0:03:14.4]}
47... Qd3 {[%clk 0:01:21.9]} 48. Qf3 {[%clk 0:03:10.9]} 48... Qd4+ {[%clk
0:01:15.1]} 49. Qe4 {[%clk 0:03:09.6]} 49... Qd2+ {[%clk 0:01:14.2]} 50. Kg3
{[%clk 0:03:08.3]} 50... Qc3+ {[%clk 0:01:11.2]} 51. Kh4 {[%clk 0:03:05.9]}
51... Qxb3 {[%clk 0:01:05.5]} 52. c5 {[%clk 0:03:04.1]} 52... Qe6 {[%clk
0:00:56.5]} 53. Qf5 {[%clk 0:03:00.7]} 53... Qh6+ {[%clk 0:00:45.2]} 54. Qh5
{[%clk 0:02:59.3]} 54... Qe3 {[%clk 0:00:40.6]} 55. Qg5+ {[%clk 0:02:58.2]}
55... Qxg5+ {[%clk 0:00:39.6]} 56. Kxg5 {[%clk 0:02:58.1]} 1-0

[Event "Live Chess"]
[Site "Chess.com"]
[Date "2023.05.21"]
[Round "-"]
[White "AyannaTang"]
[Black "whatnot126"]
[Result "0-1"]
[WhiteElo "212"]
[BlackElo "2050"]
[TimeControl "300"]
[EndTime "5:47:56 PDT"]
[Termination "whatnot126 won by checkmate"]

1. e4 {[%clk 0:04:58.8]} 1... d6 {[%clk 0:04:58.5]} 2. d4 {[%clk 0:04:56.9]}
2... Nf6 {[%clk 0:04:50.8]} 3. Nf3 {[%clk 0:04:54.8]} 3... g6 {[%clk 0:04:48.7]}
4. Nc3 {[%clk 0:04:52.5]} 4... Bg7 {[%clk 0:04:47.9]} 5. Bc4 {[%clk 0:04:45]}
5... O-O {[%clk 0:04:46.2]} 6. Bf4 {[%clk 0:04:42.7]} 6... Nxe4 {[%clk
0:04:42.9]} 7. Nxe4 {[%clk 0:04:38.9]} 7... d5 {[%clk 0:04:42.1]} 8. Bxd5 {[%clk
0:04:37]} 8... Qxd5 {[%clk 0:04:40.9]} 9. Neg5 {[%clk 0:04:32]} 9... h6 {[%clk
0:04:28.4]} 10. Ne4 {[%clk 0:04:23.2]} 10... Qxe4+ {[%clk 0:04:25.5]} 11. Be3
{[%clk 0:04:16.4]} 11... f5 {[%clk 0:04:20.8]} 12. Qd2 {[%clk 0:04:08]} 12... f4
{[%clk 0:04:18.4]} 13. O-O-O {[%clk 0:03:57.7]} 13... fxe3 {[%clk 0:04:17]} 14.
fxe3 {[%clk 0:03:56]} 14... Bg4 {[%clk 0:04:10.8]} 15. Rhe1 {[%clk 0:03:51.1]}
15... Nc6 {[%clk 0:04:07.8]} 16. Rf1 {[%clk 0:03:41.6]} 16... Rad8 {[%clk
0:04:00.3]} 17. Rde1 {[%clk 0:03:39.9]} 17... e5 {[%clk 0:03:52.3]} 18. dxe5
{[%clk 0:03:38.5]} 18... Rxd2 {[%clk 0:03:50.1]} 19. Kxd2 {[%clk 0:03:36.6]}
19... Bxf3 {[%clk 0:03:48]} 20. gxf3 {[%clk 0:03:33.8]} 20... Rxf3 {[%clk
0:03:47.9]} 21. Rxf3 {[%clk 0:03:32]} 21... Qxf3 {[%clk 0:03:47.8]} 22. Kc1
{[%clk 0:03:26.5]} 22... Bxe5 {[%clk 0:03:42.2]} 23. h4 {[%clk 0:03:22]} 23...
Bg3 {[%clk 0:03:38.4]} 24. h5 {[%clk 0:03:20.2]} 24... Bxe1 {[%clk 0:03:37.1]}
25. Kb1 {[%clk 0:03:18.3]} 25... Qd1# {[%clk 0:03:35.8]} 0-1

[Event "Live Chess"]
[Site "Chess.com"]
[Date "2023.05.21"]
[Round "-"]
[White "smoggyrabbit"]
[Black "jbooth"]
[Result "0-1"]
[WhiteElo "1661"]
[BlackElo "1698"]
[TimeControl "300"]
[EndTime "5:48:00 PDT"]
[Termination "jbooth won on time"]

1. d4 {[%clk 0:04:59.1]} 1... d6 {[%clk 0:04:57.5]} 2. e4 {[%clk 0:04:55.1]}
2... Nf6 {[%clk 0:04:55.9]} 3. Bd3 {[%clk 0:04:52.1]} 3... Nbd7 {[%clk 0:04:55]}
4. Nf3 {[%clk 0:04:51]} 4... e5 {[%clk 0:04:54.4]} 5. c3 {[%clk 0:04:31.5]} 5...
c6 {[%clk 0:04:52.4]} 6. O-O {[%clk 0:04:30.1]} 6... Qc7 {[%clk 0:04:51]} 7.
Nbd2 {[%clk 0:04:26.3]} 7... Be7 {[%clk 0:04:50]} 8. Qc2 {[%clk 0:04:22.8]} 8...
h6 {[%clk 0:04:48.8]} 9. b3 {[%clk 0:04:10.1]} 9... g5 {[%clk 0:04:46.9]} 10.
Bb2 {[%clk 0:04:06.7]} 10... Nf8 {[%clk 0:04:44.8]} 11. c4 {[%clk 0:03:14.9]}
11... Ng6 {[%clk 0:04:41.8]} 12. d5 {[%clk 0:03:06.5]} 12... Nf4 {[%clk
0:04:30.9]} 13. g3 {[%clk 0:02:43.5]} 13... Nxd3 {[%clk 0:04:27.2]} 14. Qxd3
{[%clk 0:02:43.4]} 14... c5 {[%clk 0:04:12.6]} 15. a3 {[%clk 0:02:35.9]} 15...
Bh3 {[%clk 0:04:02.2]} 16. Rfc1 {[%clk 0:02:28.4]} 16... Rg8 {[%clk 0:04:01.5]}
17. b4 {[%clk 0:02:24.9]} 17... b6 {[%clk 0:04:00.1]} 18. bxc5 {[%clk 0:02:16]}
18... bxc5 {[%clk 0:03:57.7]} 19. Bc3 {[%clk 0:01:39.6]} 19... Kf8 {[%clk
0:03:53.7]} 20. Rcb1 {[%clk 0:01:31.4]} 20... Kg7 {[%clk 0:03:48.3]} 21. Rb5
{[%clk 0:01:08.6]} 21... a6 {[%clk 0:03:44.2]} 22. Ba5 {[%clk 0:00:54.5]} 22...
Qd7 {[%clk 0:03:43.3]} 23. Rb3 {[%clk 0:00:47.8]} 23... Rgb8 {[%clk 0:03:40.8]}
24. Rab1 {[%clk 0:00:44.3]} 24... Rxb3 {[%clk 0:03:38.8]} 25. Rxb3 {[%clk
0:00:41.6]} 25... Qa4 {[%clk 0:03:32.1]} 26. Bc3 {[%clk 0:00:19.3]} 26... Rb8
{[%clk 0:02:57.3]} 27. Qb1 {[%clk 0:00:14.5]} 27... Rxb3 {[%clk 0:02:50.1]} 28.
Qxb3 {[%clk 0:00:14.4]} 28... Qxb3 {[%clk 0:02:48]} 29. Nxb3 {[%clk 0:00:14.3]}
29... Nxe4 {[%clk 0:02:46]} 30. Na5 {[%clk 0:00:12.3]} 30... Nxc3 {[%clk
0:02:43.5]} 31. Nc6 {[%clk 0:00:10.9]} 31... Kf8 {[%clk 0:02:32]} 32. Nxe7
{[%clk 0:00:08.7]} 32... Kxe7 {[%clk 0:02:30]} 33. Nd2 {[%clk 0:00:07.8]} 33...
f5 {[%clk 0:02:23.9]} 34. f4 {[%clk 0:00:03.6]} 34... Bg4 {[%clk 0:02:17.1]} 0-1

[Event "Live Chess"]
[Site "Chess.com"]
[Date "2023.05.21"]
[Round "-"]
[White "luckywookie"]
[Black "JoeRoot66"]
[Result "1/2-1/2"]
[WhiteElo "805"]
[BlackElo "1901"]
[TimeControl "300"]
[EndTime "5:48:06 PDT"]
[Termination "Game drawn by stalemate"]

1. e4 {[%clk 0:04:55.5]} 1... c6 {[%clk 0:04:59.3]} 2. d4 {[%clk 0:04:49.6]}
2... d5 {[%clk 0:04:59.2]} 3. e5 {[%clk 0:04:46.8]} 3... Bf5 {[%clk 0:04:56]} 4.
Bd3 {[%clk 0:04:39.6]} 4... Bxd3 {[%clk 0:04:54.4]} 5. Qxd3 {[%clk 0:04:38.4]}
5... e6 {[%clk 0:04:54.3]} 6. Nf3 {[%clk 0:04:36.6]} 6... Qa5+ {[%clk
0:04:53.4]} 7. Nc3 {[%clk 0:04:31.9]} 7... Qa6 {[%clk 0:04:51.9]} 8. Kd2 {[%clk
0:04:05]} 8... Ne7 {[%clk 0:04:45]} 9. a3 {[%clk 0:04:02.8]} 9... Nf5 {[%clk
0:04:43]} 10. b4 {[%clk 0:03:58.1]} 10... Bxb4 {[%clk 0:04:37.4]} 11. Qxa6
{[%clk 0:03:54.3]} 11... Bxc3+ {[%clk 0:04:36.4]} 12. Kxc3 {[%clk 0:03:51.5]}
12... Nxa6 {[%clk 0:04:36.3]} 13. Rb1 {[%clk 0:03:44.2]} 13... b6 {[%clk
0:04:34.8]} 14. a4 {[%clk 0:03:41.7]} 14... c5 {[%clk 0:04:32.7]} 15. dxc5
{[%clk 0:03:40.3]} 15... Rc8 {[%clk 0:04:31.3]} 16. a5 {[%clk 0:03:32.5]} 16...
Rxc5+ {[%clk 0:04:25.6]} 17. Kd2 {[%clk 0:03:30.6]} 17... Rxa5 {[%clk
0:04:21.7]} 18. g4 {[%clk 0:03:22.6]} 18... Ne7 {[%clk 0:04:17.4]} 19. Nd4
{[%clk 0:03:21.4]} 19... O-O {[%clk 0:04:12.4]} 20. Rb3 {[%clk 0:03:16]} 20...
Nc5 {[%clk 0:04:11.2]} 21. Rc3 {[%clk 0:03:09.9]} 21... Ne4+ {[%clk 0:04:10.1]}
22. Kd3 {[%clk 0:03:07.5]} 22... Nxf2+ {[%clk 0:04:05.5]} 23. Ke2 {[%clk
0:03:03.5]} 23... Nxh1 {[%clk 0:04:04.2]} 24. Kf3 {[%clk 0:03:01.6]} 24... Rc5
{[%clk 0:04:02]} 25. Rxc5 {[%clk 0:03:00.4]} 25... bxc5 {[%clk 0:04:01.9]} 26.
Nb5 {[%clk 0:02:58.4]} 26... Rb8 {[%clk 0:04:00.3]} 27. Nxa7 {[%clk 0:02:56.7]}
27... Rb1 {[%clk 0:03:59]} 28. Bd2 {[%clk 0:02:49.4]} 28... Kf8 {[%clk
0:03:56.1]} 29. Kg2 {[%clk 0:02:39.3]} 29... Ke8 {[%clk 0:03:54.7]} 30. Be3
{[%clk 0:02:36.5]} 30... d4 {[%clk 0:03:52.9]} 31. Bf4 {[%clk 0:02:33.8]} 31...
Kd7 {[%clk 0:03:52.1]} 32. Nb5 {[%clk 0:02:28.8]} 32... Rxb5 {[%clk 0:03:50.8]}
33. Kxh1 {[%clk 0:02:28.7]} 33... Rb2 {[%clk 0:03:48.6]} 34. Kg2 {[%clk
0:02:28.6]} 34... Rxc2+ {[%clk 0:03:47.8]} 35. Kf3 {[%clk 0:02:28.5]} 35... Nd5
{[%clk 0:03:46.4]} 36. Bg5 {[%clk 0:02:26]} 36... f6 {[%clk 0:03:45.2]} 37. exf6
{[%clk 0:02:25]} 37... gxf6 {[%clk 0:03:45.1]} 38. Bh6 {[%clk 0:02:23.3]} 38...
Rxh2 {[%clk 0:03:43.9]} 39. g5 {[%clk 0:02:20.5]} 39... Rxh6 {[%clk 0:03:41.5]}
40. gxh6 {[%clk 0:02:19.2]} 40... c4 {[%clk 0:03:40.9]} 41. Ke2 {[%clk 0:02:18]}
41... c3 {[%clk 0:03:40.8]} 42. Kd1 {[%clk 0:02:16.9]} 42... d3 {[%clk
0:03:39.9]} 43. Kc1 {[%clk 0:02:15.6]} 43... d2+ {[%clk 0:03:38.6]} 44. Kc2
{[%clk 0:02:14.2]} 44... Ne3+ {[%clk 0:03:38.2]} 45. Kxc3 {[%clk 0:02:12.2]}
45... d1=Q {[%clk 0:03:37.4]} 46. Kb2 {[%clk 0:02:09.4]} 46... Qc2+ {[%clk
0:03:35.4]} 47. Ka3 {[%clk 0:02:07.4]} 47... Qb1 {[%clk 0:03:34.2]} 48. Ka4
{[%clk 0:02:06]} 48... Nc4 {[%clk 0:03:30.1]} 1/2-1/2

[Event "Live Chess"]
[Site "Chess.com"]
[Date "2023.05.21"]
[Round "-"]
[White "garyjc"]
[Black "Biranidun"]
[Result "0-1"]
[WhiteElo "1040"]
[BlackElo "2524"]
[TimeControl "300"]
[EndTime "5:48:14 PDT"]
[Termination "Biranidun won by resignation"]

1. e4 {[%clk 0:04:56.7]} 1... c5 {[%clk 0:04:58.7]} 2. Nc3 {[%clk 0:04:54.4]}
2... g6 {[%clk 0:04:57.3]} 3. f4 {[%clk 0:04:50.1]} 3... Bg7 {[%clk 0:04:56.6]}
4. Bc4 {[%clk 0:04:47.8]} 4... Nc6 {[%clk 0:04:52.5]} 5. Nf3 {[%clk 0:04:44.1]}
5... e6 {[%clk 0:04:51.9]} 6. d3 {[%clk 0:04:40.4]} 6... Nge7 {[%clk 0:04:50.9]}
7. O-O {[%clk 0:04:37.9]} 7... d5 {[%clk 0:04:50.5]} 8. exd5 {[%clk 0:04:33.4]}
8... exd5 {[%clk 0:04:50.4]} 9. Bb3 {[%clk 0:04:29.7]} 9... Bg4 {[%clk
0:04:49.6]} 10. a4 {[%clk 0:04:26]} 10... Nd4 {[%clk 0:04:47.2]} 11. h3 {[%clk
0:04:12.1]} 11... Nxf3+ {[%clk 0:04:43]} 12. Rxf3 {[%clk 0:04:06.6]} 12... Bxf3
{[%clk 0:04:42.1]} 13. Qxf3 {[%clk 0:04:05.3]} 13... Bxc3 {[%clk 0:04:25]} 14.
bxc3 {[%clk 0:03:58.3]} 14... Rc8 {[%clk 0:04:24.6]} 15. Bd2 {[%clk 0:03:48.9]}
15... c4 {[%clk 0:04:23.4]} 16. Ba2 {[%clk 0:03:43.2]} 16... O-O {[%clk
0:04:21.7]} 17. dxc4 {[%clk 0:03:36.6]} 17... dxc4 {[%clk 0:04:20.1]} 18. Be3
{[%clk 0:03:33]} 18... Nf5 {[%clk 0:04:15.2]} 19. Bxa7 {[%clk 0:03:26.2]} 19...
Qa5 {[%clk 0:04:10.2]} 20. Qxb7 {[%clk 0:03:14.1]} 20... Rc7 {[%clk 0:04:06.9]}
21. Qb4 {[%clk 0:02:39.4]} 21... Qxa7+ {[%clk 0:04:05.3]} 22. Kh1 {[%clk
0:02:37.5]} 22... Rb8 {[%clk 0:04:00.5]} 23. Qa3 {[%clk 0:02:24.9]} 23... Qf2
{[%clk 0:03:56.8]} 24. Rb1 {[%clk 0:02:16.6]} 24... Rxb1+ {[%clk 0:03:55.2]} 25.
Bxb1 {[%clk 0:02:15.4]} 25... Qf1+ {[%clk 0:03:53.9]} 0-1

[Event "Live Chess"]
[Site "Chess.com"]
[Date "2023.05.21"]
[Round "-"]
[White "Pablo_dmp"]
[Black "viktorskliarov"]
[Result "0-1"]
[WhiteElo "1875"]
[BlackElo "2649"]
[TimeControl "300"]
[EndTime "5:48:16 PDT"]
[Termination "viktorskliarov won by resignation"]

1. e4 {[%clk 0:04:59.3]} 1... c6 {[%clk 0:04:55.7]} 2. d4 {[%clk 0:04:58.1]}
2... d5 {[%clk 0:04:54.9]} 3. e5 {[%clk 0:04:57.8]} 3... Bf5 {[%clk 0:04:53.3]}
4. h4 {[%clk 0:04:55.8]} 4... h5 {[%clk 0:04:50.6]} 5. Bg5 {[%clk 0:04:54.4]}
5... Qb6 {[%clk 0:04:45.1]} 6. Bd3 {[%clk 0:04:53.6]} 6... Bxd3 {[%clk
0:04:37.7]} 7. Qxd3 {[%clk 0:04:53.5]} 7... Qxb2 {[%clk 0:04:36.4]} 8. Qb3
{[%clk 0:04:43.5]} 8... Qxb3 {[%clk 0:04:28.3]} 9. axb3 {[%clk 0:04:39.4]} 9...
e6 {[%clk 0:04:21.7]} 10. c4 {[%clk 0:04:23.1]} 10... Bb4+ {[%clk 0:04:11.9]}
11. Bd2 {[%clk 0:04:13.9]} 11... Bxd2+ {[%clk 0:04:08.9]} 12. Nxd2 {[%clk
0:04:13.8]} 12... Ne7 {[%clk 0:04:07.8]} 13. f4 {[%clk 0:04:00.5]} 13... Nf5
{[%clk 0:04:04.8]} 14. Ngf3 {[%clk 0:03:57.5]} 14... Ke7 {[%clk 0:03:53.3]} 15.
Kf2 {[%clk 0:03:52]} 15... Rd8 {[%clk 0:03:51.1]} 16. c5 {[%clk 0:03:47]} 16...
Na6 {[%clk 0:03:39.3]} 17. Ra4 {[%clk 0:03:32.4]} 17... Nc7 {[%clk 0:03:37.3]}
18. b4 {[%clk 0:03:23.9]} 18... Nb5 {[%clk 0:03:34.1]} 19. Nb3 {[%clk
0:03:18.8]} 19... Nc3 {[%clk 0:03:09.5]} 20. Ra5 {[%clk 0:02:49]} 20... Ne4+
{[%clk 0:02:52.1]} 21. Ke1 {[%clk 0:02:41.5]} 21... f6 {[%clk 0:02:47.4]} 22.
Nbd2 {[%clk 0:02:25]} 22... b6 {[%clk 0:02:18.8]} 23. Ra6 {[%clk 0:02:18.4]}
23... Rdb8 {[%clk 0:02:15.1]} 24. Nxe4 {[%clk 0:02:12.6]} 24... dxe4 {[%clk
0:02:14.1]} 25. Nd2 {[%clk 0:02:08.5]} 25... e3 {[%clk 0:02:10.3]} 26. Nf1
{[%clk 0:02:02.4]} 26... bxc5 {[%clk 0:02:09]} 27. bxc5 {[%clk 0:01:59.4]} 27...
Rb1+ {[%clk 0:01:54.4]} 28. Ke2 {[%clk 0:01:57.5]} 28... Rab8 {[%clk 0:01:27.3]}
29. Ra2 {[%clk 0:01:49.1]} 29... R8b2+ {[%clk 0:01:25.5]} 30. Rxb2 {[%clk
0:01:47.4]} 30... Rxb2+ {[%clk 0:01:25.4]} 31. Ke1 {[%clk 0:01:42.4]} 31... Rxg2
{[%clk 0:01:11.2]} 32. Rh3 {[%clk 0:01:37.1]} 32... e2 {[%clk 0:01:02.4]} 33.
Ne3 {[%clk 0:01:17.7]} 33... Rg1+ {[%clk 0:00:58.9]} 34. Kxe2 {[%clk 0:01:15.2]}
34... Nxd4+ {[%clk 0:00:58]} 35. Kd3 {[%clk 0:01:11.1]} 35... Nb5 {[%clk
0:00:52.9]} 36. Nc4 {[%clk 0:01:06.6]} 36... Rg4 {[%clk 0:00:50.1]} 37. Ke4
{[%clk 0:01:02.1]} 37... f5+ {[%clk 0:00:48.9]} 38. Ke3 {[%clk 0:00:58.4]} 38...
Kd7 {[%clk 0:00:44.5]} 39. Nd6 {[%clk 0:00:51.9]} 39... Kc7 {[%clk 0:00:39.9]}
40. Ne8+ {[%clk 0:00:49.6]} 40... Kd8 {[%clk 0:00:37.9]} 41. Nd6 {[%clk
0:00:47.8]} 41... Kd7 {[%clk 0:00:37.4]} 42. Nb7 {[%clk 0:00:41.4]} 42... Kc7
{[%clk 0:00:35.7]} 43. Nd6 {[%clk 0:00:40.3]} 43... a5 {[%clk 0:00:35.1]} 44.
Nc4 {[%clk 0:00:36.8]} 44... a4 {[%clk 0:00:34.1]} 45. Na5 {[%clk 0:00:30.2]}
45... a3 {[%clk 0:00:32.6]} 46. Nb3 {[%clk 0:00:29]} 46... a2 {[%clk 0:00:27.5]}
0-1

[Event "Live Chess"]
[Site "Chess.com"]
[Date "2023.05.21"]
[Round "-"]
[White "seasidecastle27"]
[Black "TheSmoulderingMaster"]
[Result "1/2-1/2"]
[WhiteElo "1883"]
[BlackElo "1641"]
[TimeControl "300"]
[EndTime "5:48:16 PDT"]
[Termination "Game drawn by repetition"]

1. d4 {[%clk 0:04:57.7]} 1... Nf6 {[%clk 0:04:58.9]} 2. Nf3 {[%clk 0:04:56.7]}
2... d6 {[%clk 0:04:58.4]} 3. Bg5 {[%clk 0:04:52.7]} 3... Ne4 {[%clk 0:04:56.8]}
4. Bh4 {[%clk 0:04:49.3]} 4... c6 {[%clk 0:04:55.7]} 5. Nbd2 {[%clk 0:04:47.7]}
5... Bf5 {[%clk 0:04:52.2]} 6. e3 {[%clk 0:04:43.9]} 6... Qa5 {[%clk 0:04:49.5]}
7. c3 {[%clk 0:04:40.7]} 7... Qb6 {[%clk 0:04:46.6]} 8. Qb3 {[%clk 0:04:33.5]}
8... Qc7 {[%clk 0:04:37.9]} 9. Nxe4 {[%clk 0:04:29.4]} 9... Bxe4 {[%clk
0:04:34.8]} 10. Nd2 {[%clk 0:04:26.6]} 10... Bd5 {[%clk 0:04:31.9]} 11. c4
{[%clk 0:04:23.5]} 11... Be6 {[%clk 0:04:31]} 12. Qc2 {[%clk 0:04:16]} 12... a6
{[%clk 0:04:28.2]} 13. Bd3 {[%clk 0:04:13.9]} 13... b5 {[%clk 0:04:25.3]} 14.
O-O {[%clk 0:04:10.6]} 14... g6 {[%clk 0:04:21.8]} 15. Bg3 {[%clk 0:04:06.2]}
15... Bg7 {[%clk 0:04:17.4]} 16. c5 {[%clk 0:04:03]} 16... O-O {[%clk
0:04:15.9]} 17. cxd6 {[%clk 0:03:52.4]} 17... exd6 {[%clk 0:04:13.9]} 18. Rfc1
{[%clk 0:03:48.2]} 18... Qd7 {[%clk 0:04:11.1]} 19. b3 {[%clk 0:03:40]} 19... c5
{[%clk 0:04:09.4]} 20. Rab1 {[%clk 0:03:34.6]} 20... Nc6 {[%clk 0:04:07.8]} 21.
dxc5 {[%clk 0:03:31.9]} 21... dxc5 {[%clk 0:04:06.6]} 22. Be4 {[%clk 0:03:25]}
22... Nb4 {[%clk 0:04:04.3]} 23. Qxc5 {[%clk 0:03:17.6]} 23... Qxd2 {[%clk
0:04:01.1]} 24. Bxa8 {[%clk 0:03:10]} 24... Rxa8 {[%clk 0:03:57.2]} 25. Rd1
{[%clk 0:03:00.8]} 25... Nd3 {[%clk 0:03:50.5]} 26. Rxd2 {[%clk 0:02:52.3]}
26... Nxc5 {[%clk 0:03:48]} 27. Rbd1 {[%clk 0:02:43.9]} 27... Ne4 {[%clk
0:03:43.6]} 28. Rd8+ {[%clk 0:02:41.7]} 28... Rxd8 {[%clk 0:03:40.9]} 29. Rxd8+
{[%clk 0:02:39.3]} 29... Bf8 {[%clk 0:03:40.2]} 30. Bf4 {[%clk 0:02:30.3]} 30...
g5 {[%clk 0:03:32.3]} 31. Bc7 {[%clk 0:02:23.7]} 31... Kg7 {[%clk 0:03:27.3]}
32. f3 {[%clk 0:02:19.7]} 32... Nc5 {[%clk 0:03:11.1]} 33. Rxf8 {[%clk
0:02:06.2]} 33... Kxf8 {[%clk 0:03:07.9]} 34. Bd6+ {[%clk 0:02:04.6]} 34... Ke8
{[%clk 0:03:07]} 35. Bxc5 {[%clk 0:02:03.5]} 35... Kd7 {[%clk 0:03:06.2]} 36.
Kf2 {[%clk 0:02:02]} 36... Kc6 {[%clk 0:03:05.1]} 37. Bd4 {[%clk 0:01:59.3]}
37... a5 {[%clk 0:03:03.9]} 38. Ke2 {[%clk 0:01:57]} 38... a4 {[%clk 0:03:03]}
39. bxa4 {[%clk 0:01:54.3]} 39... bxa4 {[%clk 0:03:01.9]} 40. a3 {[%clk
0:01:52.7]} 40... h5 {[%clk 0:02:57.2]} 41. Kd3 {[%clk 0:01:50.8]} 41... f5
{[%clk 0:02:54.1]} 42. Bf6 {[%clk 0:01:46.7]} 42... g4 {[%clk 0:02:52.4]} 43.
fxg4 {[%clk 0:01:44.6]} 43... hxg4 {[%clk 0:02:49.2]} 44. Kd4 {[%clk 0:01:41.5]}
44... Bd5 {[%clk 0:02:46.3]} 45. g3 {[%clk 0:01:38.3]} 45... Be4 {[%clk
0:02:44.1]} 46. Be5 {[%clk 0:01:36.2]} 46... Kb5 {[%clk 0:02:42.5]} 47. Bd6
{[%clk 0:01:34.7]} 47... Kc6 {[%clk 0:02:41.3]} 48. Bb4 {[%clk 0:01:33.6]} 48...
Kb5 {[%clk 0:02:40.2]} 49. Bd6 {[%clk 0:01:32.4]} 49... Kc6 {[%clk 0:02:38.5]}
50. Bb4 {[%clk 0:01:31.3]} 50... Kb5 {[%clk 0:02:37.7]} 51. Bd6 {[%clk 0:01:30]}
1/2-1/2

[Event "Live Chess"]
[Site "Chess.com"]
[Date "2023.05.21"]
[Round "-"]
[White "zdanevych"]
[Black "Bot_Boy"]
[Result "1-0"]
[WhiteElo "1517"]
[BlackElo "334"]
[TimeControl "300"]
[EndTime "5:48:19 PDT"]
[Termination "zdanevych won on time"]

1. d4 {[%clk 0:04:59.4]} 1... d5 {[%clk 0:04:58]} 2. c4 {[%clk 0:04:58.9]} 2...
Nf6 {[%clk 0:04:53.9]} 3. cxd5 {[%clk 0:04:52.1]} 3... Nxd5 {[%clk 0:04:44]} 4.
e4 {[%clk 0:04:50.7]} 4... Nb6 {[%clk 0:04:37.3]} 5. Nf3 {[%clk 0:04:49.3]} 5...
e6 {[%clk 0:04:32.4]} 6. a3 {[%clk 0:04:48]} 6... c5 {[%clk 0:04:17.2]} 7. Be3
{[%clk 0:04:29.4]} 7... c4 {[%clk 0:04:02.4]} 8. Nc3 {[%clk 0:04:22.5]} 8... Bd7
{[%clk 0:03:53.5]} 9. Be2 {[%clk 0:04:17]} 9... a6 {[%clk 0:03:39.1]} 10. O-O
{[%clk 0:04:15.2]} 10... f5 {[%clk 0:03:20]} 11. exf5 {[%clk 0:04:06.8]} 11...
exf5 {[%clk 0:03:14.1]} 12. Ne5 {[%clk 0:04:05.9]} 12... Be7 {[%clk 0:02:54.1]}
13. Bh5+ {[%clk 0:04:01.1]} 13... g6 {[%clk 0:02:51.3]} 14. Bf3 {[%clk
0:03:51.8]} 14... Bg5 {[%clk 0:02:38.8]} 15. Bxg5 {[%clk 0:03:38.8]} 15... Qxg5
{[%clk 0:02:32.2]} 16. Bxb7 {[%clk 0:03:35.9]} 16... Ra7 {[%clk 0:02:26.7]} 17.
Bd5 {[%clk 0:03:32.1]} 17... Nxd5 {[%clk 0:02:08.4]} 18. Nxd5 {[%clk 0:03:32]}
18... f4 {[%clk 0:01:50.4]} 19. Re1 {[%clk 0:03:26.4]} 19... O-O {[%clk
0:01:43.9]} 20. Nf3 {[%clk 0:03:20.6]} 20... Qxd5 {[%clk 0:01:33.2]} 21. Re5
{[%clk 0:03:17.7]} 21... Qd6 {[%clk 0:01:19.4]} 22. Qe2 {[%clk 0:02:52.1]} 22...
Rb7 {[%clk 0:00:48.7]} 23. Qxc4+ {[%clk 0:02:49.4]} 23... Kh8 {[%clk 0:00:37.5]}
24. b4 {[%clk 0:02:42.4]} 24... Rb5 {[%clk 0:00:27.9]} 25. Rae1 {[%clk
0:02:35.2]} 25... Rxe5 {[%clk 0:00:20.6]} 26. Rxe5 {[%clk 0:02:35.1]} 26... Nc6
{[%clk 0:00:12.8]} 27. Rd5 {[%clk 0:02:26.3]} 27... Qe7 {[%clk 0:00:09.5]} 28.
Ne5 {[%clk 0:02:20.1]} 28... Nxe5 {[%clk 0:00:06.1]} 29. Rxe5 {[%clk 0:02:20]}
29... Qf6 {[%clk 0:00:02.9]} 30. h3 {[%clk 0:02:16.9]} 30... Bb5 {[%clk
0:00:01.9]} 31. Qc7 {[%clk 0:02:13.4]} 1-0